[Event "WYCC U14 Girls 2019"]
[Site "Mumbai"]
[Date "2019.10.03"]
[Round "2.1"]
[White "Bhagyashree Patil"]
[Black "Divya Deshmukh"]
[Result "0-1"]
[ECO "B59"]
[WhiteElo "1802"]
[BlackElo "2358"]
[Annotator "NA"]
[PlyCount "60"]
[EventDate "2019.10.02"]
[EventType "swiss"]
[EventCountry "IND"]
[SourceTitle "playchess.com"]
[Source "ChessBase"]
[SourceQuality "1"]
[TimeControl "40/5400+30:1800+30"]

1. e4 {[%emt 0:00:00]} c5 {[%emt 0:00:00]} 2. Nf3 {[%emt 0:00:00]} d6 {[%emt 0:00:00]} 3. d4 {[%emt 0:00:00]} cxd4 {[%emt 0:00:00]} 4. Nxd4 {[%emt 0:00:00]} Nf6 {[%emt 0:00:03]} 5. Nc3 {[%emt 0:00:00]} Nc6 {[%emt 0:00:04]} 6. Be2 {[%emt 0:10:04]} e5 {[%emt 0:00:06]} 7. Nb3 {[%emt 0:01:45]} Be7 {[%emt 0:00:20]} 8. O-O {[%emt 0:01:09]} O-O {[%emt 0:00:10]} 9. Be3 {[%emt 0:05:30]} Be6 {[%emt 0:00:46]} 10. f3 {[%emt 0:01:12]} a5 {[%emt 0:03:57]} 11. Nd5 {[%emt 0:05:15]} Bxd5 {[%emt 0:06:05]} 12. exd5 {[%emt 0:00:03]} Nb4 {[%emt 0:00:13]} 13. c4 {[%emt 0:05:22]} Nd7 {[%emt 0:08:07]} 14. f4 {[%emt 0:06:30]} Bf6 {[%emt 0:09:42]} 15. Qd2 {[%emt 0:09:06]} b6 {[%emt 0:02:53]} 16. Rf3 {[%emt 0:14:45]} Re8 {[%emt 0:08:14]} 17. f5 {[%emt 0:07:14]} Na6 {[%emt 0:09:25]} 18. Rh3 {[%emt 0:02:45]} a4 {[%emt 0:01:24]} 19. Nc1 {[%emt 0:00:33]} e4 {[%emt 0:00:22]} 20. Rb1 {[%emt 0:00:35]} Nac5 {[%emt 0:05:57]} 21. b4 {[%emt 0:04:58]} axb3 {[%emt 0:02:05]} 22. axb3 {[%emt 0:00:57]} Ne5 {[%emt 0:02:32]} 23. Na2 {[%emt 0:03:22]} Qd7 {[%emt 0:06:05]} 24. g4 {[%emt 0:01:07]} Nf3+ {[%emt 0:00:56]} 25. Bxf3 {[%emt 0:01:08]} exf3 {[%emt 0:00:00]} 26. Rxf3 {[%emt 0:00:56]} Qe7 {[%emt 0:08:25]} 27. g5 {[%emt 0:02:15]} Qe4 {[%emt 0:02:05]} 28. Rbf1 {[%emt 0:00:31]} Nxb3 {[%emt 0:01:07]} 29. Qf2 {[%emt 0:08:39]} Bd4 {[%emt 0:00:59]} 30. Re1 {[%emt 0:00:21]} Rxa2 {[%emt 0:00:14]} 0-1

[Event "WYCC U14 Girls 2019"]
[Site "Mumbai"]
[Date "2019.10.03"]
[Round "2.2"]
[White "Rakshitta Ravi"]
[Black "Alekseenko, Mariya"]
[Result "1-0"]
[ECO "B47"]
[WhiteElo "2310"]
[BlackElo "1767"]
[Annotator "NA"]
[PlyCount "47"]
[EventDate "2019.10.02"]
[EventType "swiss"]
[EventCountry "IND"]
[SourceTitle "playchess.com"]
[Source "ChessBase"]
[SourceQuality "1"]
[TimeControl "40/5400+30:1800+30"]

1. e4 c5 2. Nf3 e6 3. d4 cxd4 4. Nxd4 Nc6 5. Nc3 Qc7 6. g3 a6 7. Bg2 Nf6 8. O-O Be7 9. Re1 O-O 10. Nxc6 dxc6 11. e5 Nd5 12. Qg4 Rd8 13. Bh6 Bf8 14. Bg5 Be7 15. Rad1 Bxg5 16. Qxg5 b5 17. Ne4 h6 18. Qh4 Bb7 19. Nd6 Rxd6 20. exd6 Qxd6 21. c3 Qc7 22. Qd4 Rc8 23. Qc5 Qb6 24. Rxd5 1-0

[Event "WYCC U14 Girls 2019"]
[Site "Mumbai"]
[Date "2019.10.03"]
[Round "2.3"]
[White "Chinnam Vyshnavi"]
[Black "Allahverdiyeva, Ayan"]
[Result "0-1"]
[ECO "D00"]
[WhiteElo "1745"]
[BlackElo "2160"]
[Annotator "NA"]
[PlyCount "68"]
[EventDate "2019.10.02"]
[EventType "swiss"]
[EventCountry "IND"]
[SourceTitle "playchess.com"]
[Source "ChessBase"]
[SourceQuality "1"]
[TimeControl "40/5400+30:1800+30"]

1. d4 {[%emt 0:00:00]} d5 {[%emt 0:00:42]} 2. Bf4 {[%emt 0:00:00]} Nf6 {[%emt 0:00:28]} 3. e3 {[%emt 0:00:06]} c5 {[%emt 0:06:53]} 4. dxc5 {[%emt 0:02:32]} e6 {[%emt 0:07:29]} 5. b4 {[%emt 0:02:53]} a5 {[%emt 0:00:19]} 6. c3 {[%emt 0:01:21]} Nc6 {[%emt 0:04:35]} 7. Bb5 {[%emt 0:03:07]} Bd7 {[%emt 0:02:06]} 8. a4 {[%emt 0:01:23]} axb4 {[%emt 0:01:50]} 9. Bxc6 {[%emt 0:00:15]} Bxc6 {[%emt 0:00:08]} 10. cxb4 {[%emt 0:00:07]} b6 {[%emt 0:01:06]} 11. Nd2 {[%emt 0:08:13]} d4 {[%emt 0:11:09]} 12. Ngf3 {[%emt 0:02:38]} dxe3 {[%emt 0:07:56]} 13. Bxe3 {[%emt 0:01:54]} Nd5 {[%emt 0:00:04]} 14. b5 {[%emt 0:10:10]} Nxe3 {[%emt 0:01:32]} 15. fxe3 {[%emt 0:04:14]} Bxf3 {[%emt 0:00:09]} 16. Qxf3 {[%emt 0:00:06]} Bxc5 {[%emt 0:00:07]} 17. O-O {[%emt 0:07:03]} O-O {[%emt 0:01:53]} 18. Ne4 {[%emt 0:00:23]} Be7 {[%emt 0:02:33]} 19. Rfd1 {[%emt 0:02:58]} Qc7 {[%emt 0:06:54]} 20. Rac1 {[%emt 0:02:27]} Qe5 {[%emt 0:00:54]} 21. Rc4 {[%emt 0:06:58]} f5 {[%emt 0:02:14]} 22. Nd2 {[%emt 0:02:03]} Bc5 {[%emt 0:03:58]} 23. Nf1 {[%emt 0:00:41]} f4 {[%emt 0:01:23]} 24. Re4 {[%emt 0:05:29]} Qg5 {[%emt 0:08:09]} 25. Qh3 {[%emt 0:07:05]} fxe3 {[%emt 0:09:06]} 26. Qxe6+ {[%emt 0:00:50]} Kh8 {[%emt 0:00:11]} 27. Nxe3 {[%emt 0:00:31]} Rf3 {[%emt 0:00:44]} 28. Re1 {[%emt 0:04:25]} Raf8 {[%emt 0:00:38]} 29. Re5 {[%emt 0:03:17]} Qh4 {[%emt 0:01:11]} 30. g3 {[%emt 0:12:14]} Rxg3+ {[%emt 0:00:16]} 31. Kh1 {[%emt 0:00:16]} Rg6 {[%emt 0:00:44]} 32. Nf5 {[%emt 0:01:11]} Qf2 {[%emt 0:01:04]} 33. Qd5 {[%emt 0:06:14]} Qg1+ {[%emt 0:00:11]} 34. Rxg1 {[%emt 0:00:09]} Rxg1# {[%emt 0:00:05]} 0-1

[Event "WYCC U14 Girls 2019"]
[Site "Mumbai"]
[Date "2019.10.03"]
[Round "2.4"]
[White "Nasyrova, Ekaterina"]
[Black "Zavivaeva, Emilia"]
[Result "1-0"]
[ECO "A05"]
[WhiteElo "2137"]
[BlackElo "1745"]
[Annotator "NA"]
[PlyCount "41"]
[EventDate "2019.10.02"]
[EventType "swiss"]
[EventCountry "IND"]
[SourceTitle "playchess.com"]
[Source "ChessBase"]
[SourceQuality "1"]
[TimeControl "40/5400+30:1800+30"]

1. Nf3 {[%emt 0:00:00]} Nf6 {[%emt 0:00:00]} 2. c4 {[%emt 0:00:00]} e6 {[%emt 0:00:37]} 3. e3 {[%emt 0:00:44]} d5 {[%emt 0:03:01]} 4. Nc3 {[%emt 0:01:03]} dxc4 {[%emt 0:04:42]} 5. Bxc4 {[%emt 0:01:00]} Be7 {[%emt 0:00:25]} 6. O-O {[%emt 0:02:49]} O-O {[%emt 0:00:23]} 7. d4 {[%emt 0:00:49]} c5 {[%emt 0:00:54]} 8. Qe2 {[%emt 0:03:15]} cxd4 {[%emt 0:03:16]} 9. Nxd4 {[%emt 0:07:10]} Nc6 {[%emt 0:01:43]} 10. Nxc6 {[%emt 0:09:42]} bxc6 {[%emt 0:00:17]} 11. e4 {[%emt 0:00:32]} Bb7 {[%emt 0:01:13]} 12. Be3 {[%emt 0:02:46]} Qc7 {[%emt 0:01:38]} 13. Rac1 {[%emt 0:02:27]} Rfd8 {[%emt 0:03:02]} 14. Rc2 {[%emt 0:03:52]} c5 {[%emt 0:05:03]} 15. f3 {[%emt 0:01:44]} Bd6 {[%emt 0:04:59]} 16. g3 {[%emt 0:02:00]} a6 {[%emt 0:02:37]} 17. Qf2 {[%emt 0:04:06]} Rac8 {[%emt 0:03:28]} 18. Rfc1 {[%emt 0:02:52]} Be5 {[%emt 0:01:55]} 19. Ne2 {[%emt 0:05:17]} Qa5 {[%emt 0:10:09]} 20. Bb3 {[%emt 0:03:42]} Nd7 {[%emt 0:07:44]} 21. Rd1 {[%emt 0:21:50]} 1-0

[Event "WYCC U14 Girls 2019"]
[Site "Mumbai"]
[Date "2019.10.03"]
[Round "2.5"]
[White "Velpula Sarayu"]
[Black "Roebers, Eline"]
[Result "0-1"]
[ECO "A48"]
[WhiteElo "1717"]
[BlackElo "2083"]
[Annotator "NA"]
[PlyCount "44"]
[EventDate "2019.10.02"]
[EventType "swiss"]
[EventCountry "IND"]
[SourceTitle "playchess.com"]
[Source "ChessBase"]
[SourceQuality "1"]
[TimeControl "40/5400+30:1800+30"]

1. d4 Nf6 2. Nf3 g6 3. Bf4 Bg7 4. c3 O-O 5. h3 d6 6. Nbd2 b6 7. e3 Bb7 8. Be2 Nfd7 9. O-O e5 10. Bh2 Nc6 11. a4 a5 12. Bb5 Qe7 13. Rc1 e4 14. Ne1 Nd8 15. Nc2 f5 16. Na3 Kh8 17. Bc4 Nf6 18. Be2 Ne6 19. Re1 Bh6 20. Bf1 f4 21. exf4 Nxf4 22. f3 Rae8 0-1

[Event "WYCC U14 Girls 2019"]
[Site "Mumbai"]
[Date "2019.10.03"]
[Round "2.6"]
[White "Bevanda, Ema"]
[Black "Poliakova, Varvara"]
[Result "0-1"]
[ECO "A41"]
[WhiteElo "1710"]
[BlackElo "2042"]
[Annotator "NA"]
[PlyCount "57"]
[EventDate "2019.10.02"]
[EventType "swiss"]
[EventCountry "IND"]
[SourceTitle "playchess.com"]
[Source "ChessBase"]
[SourceQuality "1"]
[TimeControl "40/5400+30:1800+30"]

1. d4 {[%emt 0:00:00]} d6 {[%emt 0:00:00]} 2. Bf4 {[%emt 0:00:00]} f5 {[%emt 0:00:00]} 3. e3 {[%emt 0:00:02]} Nf6 {[%emt 0:00:04]} 4. Nf3 {[%emt 0:00:30]} g6 {[%emt 0:00:28]} 5. Nbd2 {[%emt 0:00:51]} Bg7 {[%emt 0:00:13]} 6. c3 {[%emt 0:00:22]} Nc6 {[%emt 0:00:49]} 7. Be2 {[%emt 0:02:55]} O-O {[%emt 0:00:58]} 8. Qb3+ {[%emt 0:00:40]} e6 {[%emt 0:01:43]} 9. O-O {[%emt 0:02:01]} Kh8 {[%emt 0:02:51]} 10. Rad1 {[%emt 0:01:27]} Qe7 {[%emt 0:03:50]} 11. Nc4 {[%emt 0:05:09]} Ne4 {[%emt 0:02:10]} 12. h3 {[%emt 0:02:01]} e5 {[%emt 0:07:13]} 13. dxe5 {[%emt 0:00:45]} dxe5 {[%emt 0:00:25]} 14. Bh2 {[%emt 0:00:55]} Rb8 {[%emt 0:03:25]} 15. Qc2 {[%emt 0:16:48]} Bf6 {[%emt 0:08:36]} 16. Bd3 {[%emt 0:08:37]} Nc5 {[%emt 0:05:15]} 17. Be2 {[%emt 0:02:00]} a6 {[%emt 0:01:50]} 18. Ncd2 {[%emt 0:08:32]} Be6 {[%emt 0:04:12]} 19. b4 {[%emt 0:02:04]} Nd7 {[%emt 0:01:07]} 20. Bc4 {[%emt 0:00:29]} Nb6 {[%emt 0:01:25]} 21. Bxe6 Qxe6 {[%emt 0:00:03]} 22. Nb3 {[%emt 0:01:58]} Be7 {[%emt 0:03:36]} 23. Bg3 {[%emt 0:13:41]} h6 {[%emt 0:05:21]} 24. Ne1 {[%emt 0:04:13]} f4 {[%emt 0:07:58]} 25. exf4 {[%emt 0:00:32]} exf4 {[%emt 0:00:06]} 26. Bh2 {[%emt 0:00:13]} Bd6 {[%emt 0:04:37]} 27. Nf3 {[%emt 0:01:02]} Rbe8 {[%emt 0:02:53]} 28. Nbd4 {[%emt 0:08:04]} Nxd4 {[%emt 0:01:30]} 29. Nxd4 {[%emt 0:00:02]} 0-1

[Event "WYCC U14 Girls 2019"]
[Site "Mumbai"]
[Date "2019.10.03"]
[Round "2.7"]
[White "Pavalachandran, Ashvini"]
[Black "Dhyana Patel"]
[Result "0-1"]
[ECO "D86"]
[WhiteElo "1678"]
[BlackElo "1995"]
[Annotator "NA"]
[PlyCount "72"]
[EventDate "2019.10.02"]
[EventType "swiss"]
[EventCountry "IND"]
[SourceTitle "playchess.com"]
[Source "ChessBase"]
[SourceQuality "1"]
[TimeControl "40/5400+30:1800+30"]

1. d4 Nf6 2. c4 g6 3. Nc3 d5 4. cxd5 Nxd5 5. e4 Nxc3 6. bxc3 Bg7 7. Bc4 c5 8. Ne2 O-O 9. O-O Nc6 10. Be3 Bg4 11. f3 Bd7 12. Qd2 Rc8 13. Rac1 Qa5 14. Qb2 b6 15. Rfd1 Rfd8 16. Rf1 Rf8 17. Rfd1 Rfd8 18. e5 Be8 19. f4 e6 20. Ng3 Ne7 21. Ne4 Nf5 22. Qf2 cxd4 23. cxd4 Qb4 24. Bb3 Bc6 25. Rc4 Qa5 26. Rdc1 Bb7 27. Ng5 Rxc4 28. Bxc4 Qa3 29. Bb3 Bd5 30. Rc3 h6 31. Nf3 Bf8 32. Nd2 Qb4 33. Nb1 Bxb3 34. Rxb3 Qa4 35. Nc3 Qa6 36. g4 Nxe3 0-1

[Event "WYCC U14 Girls 2019"]
[Site "Mumbai"]
[Date "2019.10.03"]
[Round "2.8"]
[White "Obada, Ema"]
[Black "Zhuang, Yongzhe"]
[Result "1-0"]
[ECO "C42"]
[WhiteElo "1987"]
[BlackElo "1696"]
[Annotator "NA"]
[PlyCount "103"]
[EventDate "2019.10.02"]
[EventType "swiss"]
[EventCountry "IND"]
[SourceTitle "playchess.com"]
[Source "ChessBase"]
[SourceQuality "1"]
[TimeControl "40/5400+30:1800+30"]

1. e4 {[%emt 0:00:00]} e5 {[%emt 0:00:00]} 2. Nf3 {[%emt 0:00:00]} Nf6 {[%emt 0:00:00]} 3. Nxe5 {[%emt 0:00:00]} d6 {[%emt 0:00:00]} 4. Nd3 {[%emt 0:00:38]} Nxe4 {[%emt 0:00:25]} 5. Qe2 {[%emt 0:00:24]} Qe7 {[%emt 0:00:32]} 6. Nf4 {[%emt 0:01:26]} Nc6 {[%emt 0:00:16]} 7. c3 {[%emt 0:20:45]} Nf6 {[%emt 0:00:22]} 8. d4 {[%emt 0:00:32]} g5 {[%emt 0:00:36]} 9. Nd3 {[%emt 0:02:40]} Rg8 {[%emt 0:00:16]} 10. Qxe7+ {[%emt 0:04:59]} Nxe7 {[%emt 0:00:46]} 11. Nd2 {[%emt 0:04:32]} Be6 {[%emt 0:12:22]} 12. f3 {[%emt 0:06:17]} O-O-O {[%emt 0:19:34]} 13. Ne4 {[%emt 0:05:01]} Nxe4 {[%emt 0:00:58]} 14. fxe4 {[%emt 0:00:06]} f5 {[%emt 0:02:02]} 15. e5 {[%emt 0:01:33]} Nc6 {[%emt 0:10:10]} 16. exd6 {[%emt 0:02:54]} Bxd6 {[%emt 0:01:15]} 17. Bd2 {[%emt 0:00:39]} f4 {[%emt 0:05:49]} 18. Kd1 {[%emt 0:07:38]} Bd5 {[%emt 0:01:15]} 19. Kc2 {[%emt 0:02:42]} f3 {[%emt 0:00:41]} 20. gxf3 {[%emt 0:02:27]} Bxf3 {[%emt 0:00:10]} 21. Rg1 {[%emt 0:00:07]} Bxh2 {[%emt 0:00:13]} 22. Rxg5 {[%emt 0:00:15]} h5 {[%emt 0:10:00]} 23. Bh3+ {[%emt 0:01:15]} Bg4 {[%emt 0:02:36]} 24. Rxh5 {[%emt 0:00:22]} Bd6 {[%emt 0:02:14]} 25. Bxg4+ {[%emt 0:03:02]} Rxg4 26. Rah1 {[%emt 0:02:12]} b6 {[%emt 0:06:49]} 27. Rh8 {[%emt 0:04:14]} Rgg8 {[%emt 0:01:15]} 28. Rxg8 {[%emt 0:01:50]} Rxg8 {[%emt 0:00:06]} 29. Rf1 {[%emt 0:00:11]} Rg7 {[%emt 0:02:24]} 30. Rf2 {[%emt 0:00:45]} a5 {[%emt 0:02:33]} 31. Bf4 {[%emt 0:01:28]} Bxf4 {[%emt 0:02:11]} 32. Nxf4 {[%emt 0:01:25]} Rf7 {[%emt 0:01:52]} 33. Nd3 {[%emt 0:00:24]} Rd7 {[%emt 0:02:14]} 34. Rf6 {[%emt 0:01:17]} Rd6 {[%emt 0:01:32]} 35. Rxd6 {[%emt 0:01:07]} cxd6 {[%emt 0:00:06]} 36. Nf4 {[%emt 0:03:39]} b5 {[%emt 0:03:06]} 37. Kd3 {[%emt 0:00:15]} Kb7 {[%emt 0:01:21]} 38. Nd5 {[%emt 0:01:51]} Na7 {[%emt 0:01:37]} 39. b4 {[%emt 0:03:29]} Nc6 {[%emt 0:02:32]} 40. a3 {[%emt 0:01:02]} Kc8 {[%emt 0:02:42]} 41. Ke4 {[%emt 0:30:58]} Kd7 {[%emt 0:31:34]} 42. Ne3 {[%emt 0:02:00]} Kc8 {[%emt 0:00:00]} 43. Nd5 {[%emt 0:00:00]} Kd7 {[%emt 0:01:00]} 44. Ne3 {[%emt 0:01:00]} axb4 {[%emt 0:01:11]} 45. cxb4 {[%emt 0:02:29]} Ne7 {[%emt 0:01:08]} 46. Nd5 {[%emt 0:03:36]} Nc6 {[%emt 0:00:57]} 47. Nc3 {[%emt 0:00:17]} Na7 {[%emt 0:00:42]} 48. Kd5 {[%emt 0:01:39]} Ke7 {[%emt 0:01:11]} 49. Ne4 {[%emt 0:00:32]} Nc8 {[%emt 0:00:59]} 50. Kc6 {[%emt 0:00:26]} Ke6 {[%emt 0:00:00]} 51. Nc3 Ne7+ {[%emt 0:00:00]} 52. Kxb5 {[%emt 0:00:00] Kd5} 1-0

[Event "WYCC U14 Girls 2019"]
[Site "Mumbai"]
[Date "2019.10.03"]
[Round "2.9"]
[White "Yash Jyoti Bir"]
[Black "Hakobyan, Astghik"]
[Result "0-1"]
[ECO "C07"]
[WhiteElo "1640"]
[BlackElo "1978"]
[Annotator "NA"]
[PlyCount "41"]
[EventDate "2019.10.02"]
[EventType "swiss"]
[EventCountry "IND"]
[SourceTitle "playchess.com"]
[Source "ChessBase"]
[SourceQuality "1"]
[TimeControl "40/5400+30:1800+30"]

1. e4 {[%emt 0:00:00]} e6 {[%emt 0:00:00]} 2. d4 {[%emt 0:00:00]} d5 {[%emt 0:00:00]} 3. Nd2 {[%emt 0:00:00]} c5 {[%emt 0:00:00]} 4. exd5 {[%emt 0:00:00]} Qxd5 {[%emt 0:00:05]} 5. dxc5 {[%emt 0:00:00]} Bxc5 {[%emt 0:00:07]} 6. Ngf3 {[%emt 0:00:15]} Nf6 {[%emt 0:00:22]} 7. Bc4 {[%emt 0:00:15]} Qc6 {[%emt 0:00:04]} 8. Qe2 {[%emt 0:00:09]} a6 {[%emt 0:00:37]} 9. Nb3 {[%emt 0:00:49]} Ba7 {[%emt 0:05:17]} 10. Bg5 {[%emt 0:21:24]} Nbd7 {[%emt 0:03:07]} 11. O-O-O {[%emt 0:20:38]} O-O {[%emt 0:09:11]} 12. Bxf6 {[%emt 0:09:18]} Nxf6 {[%emt 0:00:48]} 13. Bd3 {[%emt 0:00:14]} b5 {[%emt 0:04:57]} 14. g4 {[%emt 0:06:35]} Bb7 {[%emt 0:04:43]} 15. Nfd4 {[%emt 0:09:41]} Bxd4 {[%emt 0:15:10]} 16. Nxd4 {[%emt 0:00:28]} Qd5 {[%emt 0:00:19]} 17. Nb3 {[%emt 0:01:30]} Qg5+ {[%emt 0:01:40]} 18. Kb1 {[%emt 0:01:07]} Bxh1 {[%emt 0:00:10]} 19. Rxh1 {[%emt 0:00:01]} Qxg4 {[%emt 0:01:33]} 20. f3 {[%emt 0:00:28]} Qh5 {[%emt 0:04:45]} 21. Rg1 {[%emt 0:03:54]} 0-1

[Event "WYCC U14 Girls 2019"]
[Site "Mumbai"]
[Date "2019.10.03"]
[Round "2.10"]
[White "Wikar, Martyna"]
[Black "Renganayaki V"]
[Result "1-0"]
[ECO "B00"]
[WhiteElo "1969"]
[BlackElo "1641"]
[Annotator "NA"]
[PlyCount "131"]
[EventDate "2019.10.02"]
[EventType "swiss"]
[EventCountry "IND"]
[SourceTitle "playchess.com"]
[Source "ChessBase"]
[SourceQuality "1"]
[TimeControl "40/5400+30:1800+30"]

1. e4 {[%emt 0:00:00]} b6 {[%emt 0:00:00]} 2. Nf3 {[%emt 0:02:23]} Bb7 {[%emt 0:00:00]} 3. Nc3 {[%emt 0:01:23]} e6 {[%emt 0:00:02]} 4. d4 {[%emt 0:01:05]} Bb4 {[%emt 0:00:11]} 5. Bd3 {[%emt 0:01:25]} Nf6 {[%emt 0:00:09]} 6. Qe2 {[%emt 0:03:44]} d5 {[%emt 0:00:10]} 7. exd5 {[%emt 0:03:07]} Qxd5 8. Bd2 {[%emt 0:03:37]} Bxc3 {[%emt 0:00:35]} 9. Bxc3 {[%emt 0:04:27]} Nbd7 {[%emt 0:04:04]} 10. b3 {[%emt 0:02:20]} Ne4 {[%emt 0:07:51]} 11. Bb2 {[%emt 0:07:55]} Qa5+ {[%emt 0:04:17]} 12. Nd2 {[%emt 0:00:22]} Nxd2 {[%emt 0:04:09]} 13. Qxd2 {[%emt 0:00:06]} Qxd2+ {[%emt 0:00:21]} 14. Kxd2 {[%emt 0:00:05]} O-O-O {[%emt 0:00:47]} 15. Rae1 {[%emt 0:03:58]} Nf6 {[%emt 0:05:35]} 16. f3 {[%emt 0:02:41]} Nd5 17. Rhg1 {[%emt 0:09:23]} Nb4 {[%emt 0:04:59]} 18. a3 {[%emt 0:05:36]} Nxd3 {[%emt 0:00:09]} 19. Kxd3 {[%emt 0:00:10]} c5 {[%emt 0:01:26]} 20. Ke3 {[%emt 0:07:37]} cxd4+ {[%emt 0:02:34]} 21. Bxd4 {[%emt 0:00:15]} f6 {[%emt 0:01:55]} 22. Bb2 {[%emt 0:01:52]} e5 {[%emt 0:00:41]} 23. g4 {[%emt 0:01:21]} Rhe8 {[%emt 0:00:50]} 24. h4 {[%emt 0:03:36]} Rd7 {[%emt 0:02:31]} 25. h5 {[%emt 0:03:49]} g6 {[%emt 0:04:51]} 26. f4 {[%emt 0:04:24]} gxh5 {[%emt 0:05:37]} 27. gxh5 {[%emt 0:02:38]} exf4+ {[%emt 0:02:18]} 28. Kxf4 {[%emt 0:00:06]} Rxe1 {[%emt 0:01:00]} 29. Rxe1 {[%emt 0:00:03]} Rd5 {[%emt 0:01:50]} 30. Bxf6 {[%emt 0:07:08]} Rxh5 {[%emt 0:01:05]} 31. Re8+ {[%emt 0:00:28]} Kd7 {[%emt 0:00:03]} 32. Re7+ {[%emt 0:00:35]} Kc6 {[%emt 0:09:25]} 33. Be5 {[%emt 0:02:15]} Rh4+ {[%emt 0:00:26]} 34. Kg5 {[%emt 0:01:20]} Rh1 {[%emt 0:00:33]} 35. c4 {[%emt 0:01:20]} Rg1+ {[%emt 0:11:07]} 36. Kf4 {[%emt 0:00:26]} Rf1+ {[%emt 0:01:08]} 37. Kg3 {[%emt 0:00:25]} b5 {[%emt 0:03:21]} 38. Rc7+ {[%emt 0:00:12]} Kb6 {[%emt 0:00:04]} 39. c5+ {[%emt 0:00:14]} Ka6 {[%emt 0:00:16]} 40. c6 {[%emt 0:00:23]} Bxc6 {[%emt 0:00:44]} 41. Rxc6+ {[%emt 0:30:07]} Kb7 {[%emt 0:30:08]} 42. Rc7+ {[%emt 0:01:00]} Ka6 {[%emt 0:00:52]} 43. Rc6+ {[%emt 0:00:00]} Kb7 {[%emt 0:00:08]} 44. Rc7+ {[%emt 0:00:23]} Kb6 {[%emt 0:00:29]} 45. Rxh7 {[%emt 0:01:24]} Rb1 {[%emt 0:01:49]} 46. b4 {[%emt 0:01:48]} Rb3+ {[%emt 0:00:56]} 47. Kf4 {[%emt 0:00:12]} Rxa3 {[%emt 0:01:54]} 48. Bd4+ {[%emt 0:00:10]} Kc6 {[%emt 0:00:02]} 49. Rxa7 {[%emt 0:00:22]} Rb3 {[%emt 0:00:11]} 50. Bc5 {[%emt 0:00:22]} Kd5 {[%emt 0:00:52]} 51. Rd7+ {[%emt 0:01:04]} Kc4 {[%emt 0:00:19]} 52. Rd4+ {[%emt 0:00:30]} Kc3 {[%emt 0:00:03]} 53. Ke5 {[%emt 0:00:16]} Rb1 {[%emt 0:01:35]} 54. Rh4 {[%emt 0:00:11]} Rd1 {[%emt 0:00:22]} 55. Rf4 {[%emt 0:02:41]} Rd3 {[%emt 0:01:36]} 56. Ke6 Rd1 {[%emt 0:00:21]} 57. Bd6 {[%emt 0:00:55]} Kb3 {[%emt 0:00:18]} 58. Kd7 {[%emt 0:00:14]} Ka4 {[%emt 0:00:26]} 59. Kc6 {[%emt 0:00:20]} Rc1+ {[%emt 0:00:03]} 60. Bc5 {[%emt 0:00:35]} Rh1 {[%emt 0:00:31]} 61. Rf6 {[%emt 0:00:43]} Rd1 {[%emt 0:00:56]} 62. Rf4 {[%emt 0:00:17]} Rh1 {[%emt 0:00:04]} 63. Rf6 {[%emt 0:00:43]} Rd1 {[%emt 0:02:11]} 64. Rf8 {[%emt 0:00:25]} Rh1 {[%emt 0:01:06]} 65. Ra8+ {[%emt 0:00:06]} Kb3 {[%emt 0:00:02]} 66. Kxb5 {[%emt 0:00:07]} 1-0

[Event "WYCC U14 Girls 2019"]
[Site "Mumbai"]
[Date "2019.10.03"]
[Round "3.1"]
[White "Divya Deshmukh"]
[Black "Wikar, Martyna"]
[Result "1/2-1/2"]
[ECO "A44"]
[WhiteElo "2358"]
[BlackElo "1969"]
[Annotator "NA"]
[PlyCount "120"]
[EventDate "2019.10.02"]
[EventType "swiss"]
[EventCountry "IND"]
[SourceTitle "playchess.com"]
[Source "ChessBase"]
[SourceQuality "1"]
[TimeControl "40/5400+30:1800+30"]

1. d4 {[%emt 0:00:00]} c5 {[%emt 0:00:00]} 2. d5 {[%emt 0:00:00]} e5 {[%emt 0:00:04]} 3. e4 {[%emt 0:00:36]} d6 {[%emt 0:00:24]} 4. Nc3 {[%emt 0:00:26]} Be7 {[%emt 0:00:53]} 5. g3 {[%emt 0:01:42]} Nf6 {[%emt 0:01:35]} 6. Bg2 {[%emt 0:00:31]} O-O {[%emt 0:01:51]} 7. Nge2 {[%emt 0:00:41]} Nbd7 {[%emt 0:02:03]} 8. h3 {[%emt 0:03:48]} Ne8 {[%emt 0:00:55]} 9. Qd3 {[%emt 0:01:41]} a6 {[%emt 0:04:14]} 10. a4 {[%emt 0:00:23]} g6 {[%emt 0:00:36]} 11. g4 {[%emt 0:12:49]} Ng7 {[%emt 0:01:30]} 12. h4 {[%emt 0:08:28]} Nf6 {[%emt 0:09:44]} 13. g5 {[%emt 0:18:36]} Nfh5 {[%emt 0:02:26]} 14. Ng3 {[%emt 0:18:44]} Nxg3 {[%emt 0:06:44]} 15. fxg3 {[%emt 0:00:34]} Bg4 {[%emt 0:01:15]} 16. O-O {[%emt 0:05:07]} f6 {[%emt 0:03:21]} 17. gxf6 {[%emt 0:00:05]} Bxf6 {[%emt 0:00:43]} 18. Bh6 {[%emt 0:00:21]} Qd7 {[%emt 0:04:44]} 19. a5 {[%emt 0:01:47]} Be7 {[%emt 0:03:12]} 20. b3 {[%emt 0:04:20]} Rxf1+ {[%emt 0:01:35]} 21. Rxf1 {[%emt 0:00:11]} Rf8 {[%emt 0:02:25]} 22. Rxf8+ {[%emt 0:01:40]} Bxf8 {[%emt 0:00:22]} 23. Bxg7 {[%emt 0:00:44]} Bxg7 {[%emt 0:05:34]} 24. Na4 {[%emt 0:00:34]} Qb5 {[%emt 0:03:19]} 25. Qd2 {[%emt 0:00:29]} Qe2 {[%emt 0:03:07]} 26. Qxe2 {[%emt 0:02:18]} Bxe2 {[%emt 0:00:08]} 27. Nb2 {[%emt 0:06:28]} Bh6 {[%emt 0:03:09]} 28. Kf2 {[%emt 0:01:12]} Bb5 {[%emt 0:03:06]} 29. Ke1 {[%emt 0:05:48]} Kf7 {[%emt 0:04:36]} 30. Bh3 {[%emt 0:01:17]} Ke7 {[%emt 0:00:06]} 31. Nd1 {[%emt 0:01:14]} Bd7 {[%emt 0:01:10]} 32. Bxd7 {[%emt 0:02:13]} Kxd7 {[%emt 0:00:01]} 33. Nb2 {[%emt 0:00:01]} Bc1 {[%emt 0:02:05]} 34. Nc4 {[%emt 0:00:04]} h5 {[%emt 0:00:44]} 35. Kd1 {[%emt 0:00:56]} Bh6 {[%emt 0:00:13]} 36. Ke2 {[%emt 0:00:02]} g5 {[%emt 0:04:04]} 37. g4 {[%emt 0:01:37]} gxh4 {[%emt 0:08:55]} 38. gxh5 {[%emt 0:00:01]} h3 {[%emt 0:00:37]} 39. Kf1 {[%emt 0:00:31]} Ke7 {[%emt 0:02:07]} 40. Kf2 {[%emt 0:00:07]} Bf4 {[%emt 0:01:02]} 41. Kf3 {[%emt 0:04:56]} Kd7 {[%emt 0:03:43]} 42. c3 {[%emt 0:04:13]} Ke7 {[%emt 0:01:03]} 43. Kf2 {[%emt 0:01:30]} Kd7 {[%emt 0:00:52]} 44. Kf3 {[%emt 0:00:00]} Ke7 {[%emt 0:00:08]} 45. Kf2 {[%emt 0:01:00]} Kd7 {[%emt 0:00:52]} 46. Nb2 {[%emt 0:12:16]} Ke7 {[%emt 0:03:42]} 47. Nc4 {[%emt 0:05:09]} Kd7 {[%emt 0:00:18]} 48. Kg1 {[%emt 0:04:34]} Ke7 {[%emt 0:00:30]} 49. Kf1 {[%emt 0:00:01]} Kd7 {[%emt 0:00:15]} 50. Kf2 {[%emt 0:00:01]} Ke7 {[%emt 0:00:07]} 51. Kf3 {[%emt 0:00:01]} Kd7 {[%emt 0:00:28]} 52. Nb2 {[%emt 0:00:05]} Ke7 {[%emt 0:00:32]} 53. Nc4 {[%emt 0:02:20]} Kd7 {[%emt 0:00:10]} 54. h6 {[%emt 0:01:03]} h2 {[%emt 0:01:54]} 55. Kg2 {[%emt 0:00:02]} h1=Q+ {[%emt 0:00:55]} 56. Kxh1 {[%emt 0:00:01]} Bxh6 {[%emt 0:00:04]} 57. Kg2 {[%emt 0:00:02]} Bg5 {[%emt 0:01:38]} 58. Kg3 {[%emt 0:00:04]} Bf4+ {[%emt 0:00:21]} 59. Kg4 {[%emt 0:00:02]} Ke7 {[%emt 0:00:35]} 60. Kf5 {[%emt 0:00:02]} Bg3 {[%emt 0:00:27]} 1/2-1/2